bitfinex/quotes_SOLUSD_20241209
["timestamp","ask_amount","ask_price","bid_price","bid_amount"]
[1733715652553,1.5251,231.66,231.53,9.23176854]
[1733715653759,1.5251,231.66,231.53,0.64753342]
[1733715653946,1.5251,231.66,231.53,9.23176854]
[1733715655660,1.5251,231.66,231.54,8.58423512]
[1733715655862,1.5251,231.66,231.55,0.64759978]
[1733715656885,1.5251,231.66,231.56,0.64760475]
[1733715657755,1.5251,231.66,231.53,9.23184475]
[1733715661253,20.0,231.62,231.53,0.64760963]
[1733715661756,20.0,231.62,231.48,0.64761545]
[1733715661960,20.0,231.62,231.48,9.23185057]
[1733715662172,20.0,231.62,231.49,8.58423512]
[1733715662478,20.0,231.62,231.5,0.64771859]
[1733715663257,1.623,231.61,231.49,0.64774164]
[1733715664858,6.56,231.6,231.49,0.64774164]
[1733715665060,20.0,231.57,231.48,23.776884]
[1733715665260,20.0,231.57,231.49,0.64774119]
[1733715668703,20.0,231.57,231.47,0.64779301]
[1733715671164,20.0,231.57,231.48,8.58423512]
[1733715671483,20.0,231.57,231.49,0.64777814]
[1733715672486,20.0,231.57,231.49,9.23201326]
[1733715672664,6.56,231.6,231.49,9.23201326]
[1733715673071,6.56,231.6,231.5,8.58423512]
[1733715673282,6.56,231.6,231.51,0.64769903]
[1733715673488,6.56,231.6,231.51,9.23193415]
[1733715673694,6.56,231.6,231.52,8.58423512]
[1733715673911,6.56,231.6,231.53,0.64764921]
[1733715675706,6.56,231.6,231.5,8.58423512]
[1733715675889,6.56,231.6,231.51,0.64767537]
[1733715678017,1.623,231.61,231.52,8.58423512]
[1733715678184,1.623,231.61,231.53,0.64761793]
[1733715679213,6.5209,231.66,231.56,8.58423512]
[1733715679412,6.5209,231.66,231.57,9.23175922]
[1733715681190,1.53,231.67,231.59,8.58423512]
[1733715681388,1.53,231.67,231.6,0.64742432]
[1733715681583,6.4459,231.71,231.61,8.58423512]
[1733715681890,6.4459,231.71,231.62,0.64739711]
[1733715682088,6.4459,231.71,231.63,8.58423512]
[1733715682300,6.4459,231.71,231.64,9.23155708]
[1733715682617,6.4459,231.77,231.68,8.58423512]
[1733715682821,6.4459,231.77,231.69,0.64719238]
[1733715683227,6.4459,231.77,231.69,9.2314275]
[1733715683438,1.5063,231.78,231.72,8.58423512]
[1733715683616,1.5063,231.78,231.73,0.6471114]
[1733715683987,6.4459,231.83,231.74,8.58423512]
[1733715684190,6.4459,231.83,231.75,0.64701908]
[1733715685201,6.4459,231.83,231.75,9.2312542]
[1733715686689,1.5572,231.84,231.75,9.2312542]
[1733715687120,6.0843,231.88,231.79,8.58423512]
[1733715687292,6.0843,231.88,231.8,0.64685122]
[1733715687695,6.0843,231.88,231.8,9.23108634]
[1733715688222,6.0843,231.88,231.74,0.6468081]
[1733715688424,6.0843,231.88,231.77,20.0]
[1733715688718,6.0843,231.88,231.74,9.23104322]
[1733715688928,6.0843,231.88,231.75,8.58423512]
[1733715689115,6.0843,231.88,231.76,9.23118058]
[1733715689497,6.0843,231.88,231.76,0.64694546]
[1733715689797,6.0843,231.88,231.78,8.58423512]
[1733715690004,6.0843,231.88,231.79,0.64688425]
[1733715690214,6.0843,231.88,231.76,9.23113854]
[1733715690528,6.0843,231.88,231.76,0.64690342]
[1733715690902,6.0843,231.88,231.76,9.23113854]
[1733715693004,6.0843,231.88,231.76,0.64690342]
[1733715693500,6.0843,231.88,231.76,9.23113854]
[1733715693971,6.0843,231.88,231.76,0.64690342]
[1733715694303,6.0843,231.88,231.76,9.23113854]
[1733715694834,6.0843,231.88,231.77,8.58423512]
[1733715695004,6.0843,231.88,231.78,9.23110163]
[1733715695207,1.5572,231.89,231.78,9.23110163]
[1733715695208,1.5572,231.89,231.8,8.58423512]
[1733715695432,1.5572,231.89,231.81,0.64678123]
[1733715695866,6.6628,231.93,231.82,8.58423512]
[1733715696007,6.6628,231.93,231.79,10.7856]
[1733715696008,6.6628,231.93,231.83,9.23097912]
[1733715696203,6.6628,231.93,231.84,8.58423512]
[1733715696406,6.6628,231.93,231.85,0.64669616]
[1733715697016,1.6306,231.95,231.85,0.64669616]
[1733715698537,1.6306,231.95,231.85,9.23093128]
[1733715698845,1.6306,231.95,231.86,8.58423512]
[1733715699011,1.6306,231.95,231.87,0.64663293]
[1733715699730,1.6306,231.95,231.84,0.64666879]
[1733715700744,1.6306,231.95,231.82,0.64677143]
[1733715701241,20.0,231.91,231.77,10.22353512]
[1733715701471,20.0,231.91,231.78,0.6468541]
[1733715701814,20.0,231.91,231.78,9.23108922]
[1733715702418,20.0,231.91,231.79,23.776884]
[1733715702755,20.0,231.91,231.8,0.64681974]
[1733715702930,20.0,231.91,231.8,9.23105486]
[1733715703120,6.2976,231.94,231.82,8.58423512]
[1733715703321,6.2976,231.94,231.85,8.58423512]
[1733715703545,6.2976,231.94,231.86,9.23092364]
[1733715705261,1.6306,231.95,231.86,9.23092364]
[1733715706160,1.6306,231.95,231.87,8.58423512]
[1733715706342,1.6306,231.95,231.88,0.64662959]
[1733715710356,23.776884,231.94,231.88,0.64662959]
[1733715715961,6.6086,232.0,231.89,8.58423512]
[1733715715962,8.1595,232.0,231.89,8.58423512]
[1733715716166,23.776884,231.99,231.9,0.64656914]
[1733715718542,23.776884,231.99,231.9,9.23080426]
[1733715719052,23.776884,231.99,231.9,0.64656914]
[1733715722040,23.776884,231.99,231.91,0.64655536]
[1733715722765,23.776884,231.99,231.92,8.58423512]
[1733715723079,23.776884,231.99,231.93,0.64650461]
[1733715723280,20.0,232.01,231.93,9.23073973]
[1733715723569,23.776884,232.0,231.93,9.23073973]
[1733715723782,20.0,232.01,231.94,8.58423512]
[1733715723949,23.776884,232.03,231.95,0.64645072]
[1733715725387,23.776884,232.03,231.93,8.58423512]
[1733715725679,23.776884,232.03,231.94,0.64646069]
[1733715725968,23.776884,232.03,231.9,10.7803]
[1733715725969,23.776884,232.03,231.91,0.64646188]
[1733715728753,23.776884,232.03,231.91,9.230697]
[1733715731506,23.776884,232.03,231.91,0.64646188]
[1733715732791,23.776884,232.03,231.91,9.230697]
[1733715734483,23.776884,232.03,231.91,0.64646188]
[1733715734983,20.0,232.0,231.91,0.64646188]
[1733715735288,20.0,232.0,231.9,8.58423512]
[1733715735476,23.776884,231.99,231.91,0.64657382]
[1733715735680,23.776884,231.99,231.88,8.58423512]
[1733715735978,23.776884,231.99,231.86,13.02770056]
[1733715736183,23.776884,231.99,231.86,21.61193568]
[1733715736569,23.776884,231.99,231.86,13.02770056]
[1733715736773,23.776884,231.99,231.86,21.61193568]
[1733715736974,20.0,231.96,231.86,1.5988]
[1733715737283,23.776884,231.95,231.86,1.5988]
[1733715740607,23.776884,231.95,231.83,6.2348]
[1733715741659,23.776884,231.95,231.81,1.5411]
[1733715742062,23.776884,231.95,231.81,2.18798081]
[1733715742766,20.0,231.92,231.81,2.18798081]
[1733715742966,20.0,231.92,231.81,1.5411]
[1733715743592,20.0,231.92,231.78,6.0832]
[1733715743794,23.776884,231.91,231.78,6.0832]
[1733715743979,20.0,231.84,231.75,1.5898]
[1733715745777,23.776884,231.83,231.72,6.4697]
[1733715746201,23.776884,231.83,231.7,0.6470618]
[1733715746202,20.0,231.8,231.7,0.6470618]
[1733715746540,20.0,231.8,231.69,0.6472005]
[1733715749385,20.0,231.8,231.68,1.5181]
[1733715750405,20.0,231.8,231.69,0.64721191]
[1733715751107,1.5598,231.89,231.72,8.58423512]
[1733715751385,1.5598,231.89,231.75,8.58423512]
[1733715751603,1.5598,231.89,231.76,0.64699923]
[1733715752321,5.59775257,231.94,231.77,10.18233512]
[1733715752322,1.5613,231.94,231.77,10.18233512]
[1733715752639,1.5613,231.94,231.78,0.64693018]
[1733715753695,20.0,231.92,231.78,0.64693018]
[1733715754304,20.0,231.92,231.77,1.5981]
[1733715754910,20.0,231.88,231.77,1.5981]
[1733715755815,20.0,231.88,231.78,0.64700578]
[1733715756202,20.0,231.88,231.77,1.5981]
[1733715757215,23.776884,231.87,231.77,1.5981]
[1733715757511,20.0,231.84,231.77,1.5981]
[1733715761395,23.776884,231.83,231.71,1.5015]
[1733715761725,20.0,231.8,231.71,1.5015]
[1733715762607,1.75244271,231.88,231.71,1.5015]
[1733715762792,20.0,231.84,231.72,0.64714423]
[1733715763700,20.0,231.82,231.72,0.64714423]
[1733715763885,20.0,231.82,231.71,1.5015]
[1733715774238,1.5613,231.94,231.75,10.24223512]
[1733715774528,1.5613,231.94,231.77,6.3471]
[1733715774824,1.5613,231.94,231.78,0.64697522]
[1733715775397,3.281165,231.94,231.78,0.64697522]
[1733715775738,20.0,231.88,231.78,0.64697522]
[1733715776640,20.0,231.88,231.77,6.3471]
[1733715776641,20.0,231.84,231.77,6.3471]
[1733715782744,20.0,231.8,231.75,1.658]
[1733715783507,1.77170605,231.88,231.75,1.658]
[1733715783709,20.0,231.84,231.75,1.658]
[1733715784742,20.0,231.85,231.75,1.658]
[1733715784936,20.0,231.81,231.75,1.658]
[1733715785447,23.776884,231.88,231.75,1.658]
[1733715785448,20.0,231.85,231.75,1.658]
[1733715785940,20.0,231.81,231.75,1.658]
[1733715787347,23.776884,231.8,231.7,6.0205]
[1733715789558,20.0,231.83,231.7,6.0205]
[1733715790824,20.0,231.79,231.7,6.0205]
[1733715792666,20.0,231.85,231.7,6.0205]
[1733715792969,20.0,231.89,231.72,1.6648]
[1733715793136,1.5512,231.91,231.73,0.64708474]
[1733715794261,23.776884,231.9,231.73,0.64708474]
[1733715794478,20.0,231.87,231.73,0.64708474]
[1733715794965,20.0,231.83,231.73,0.64708474]
[1733715795541,20.0,231.87,231.73,0.64708474]
[1733715795978,23.776884,231.86,231.73,0.64708474]
[1733715799259,20.0,231.87,231.76,8.58423512]
[1733715799460,20.0,231.87,231.78,1.5898]
[1733715800056,1.71547605,231.91,231.78,1.5898]
[1733715800246,20.0,231.94,231.78,1.5898]
[1733715800653,23.776884,231.93,231.78,1.5898]
[1733715801077,20.0,231.9,231.78,1.5898]
[1733715802771,1.71101493,231.94,231.79,0.6469667]
[1733715802985,1.5371,231.97,231.79,0.6469667]
[1733715803893,23.776884,231.97,231.8,8.04]
[1733715804066,20.0,231.94,231.8,8.04]
[1733715804266,23.776884,231.93,231.8,8.68689684]
[1733715804446,20.0,231.9,231.8,8.68689684]
[1733715804851,20.0,231.96,231.8,28.05603196]
[1733715805162,4.4703093,232.0,231.83,8.58423512]
[1733715805348,6.69095199,232.02,231.84,2.23655145]
[1733715805679,8.22805199,232.03,231.84,2.23655145]
[1733715805882,10.0,232.0,231.81,1.5898]
[1733715806093,6.69095199,231.99,231.81,1.5898]
[1733715806395,15.15789525,231.99,231.81,1.5898]
[1733715806618,23.776884,231.95,231.81,1.5898]
[1733715806757,23.776884,231.91,231.81,1.5898]
[1733715806962,20.0,231.88,231.81,1.5898]
[1733715811057,23.776884,231.91,231.81,1.5898]
[1733715812592,20.0,231.88,231.81,1.5898]
[1733715812776,4.4703093,231.98,231.82,0.64694433]
[1733715812974,3.99663396,231.99,231.82,0.64694433]
[1733715813766,3.99663396,231.99,231.83,8.0398]
[1733715814075,3.99663396,231.99,231.84,0.64679666]
[1733715815897,20.0,231.95,231.84,0.64679666]
[1733715816815,20.0,231.91,231.83,8.0398]
[1733715817101,23.776884,231.94,231.83,8.0398]
[1733715817573,20.0,231.91,231.83,8.0398]
[1733715820683,23.99663396,231.99,231.83,8.0398]
[1733715820877,20.0,231.95,231.84,0.64686425]
[1733715821387,20.0,231.95,231.83,8.0398]
[1733715822680,20.0,231.95,231.83,8.68662708]
[1733715825713,20.0,231.95,231.83,8.0398]
[1733715827086,20.0,231.91,231.83,8.0398]
[1733715829019,20.0,232.0,231.83,8.0398]
[1733715829221,23.776884,232.0,231.83,8.0398]
[1733715829708,23.776884,231.96,231.83,8.0398]
[1733715830022,20.0,231.93,231.83,8.0398]
[1733715834106,20.0,232.01,231.84,0.64682971]
[1733715834308,23.776884,232.0,231.84,0.64682971]
[1733715834702,20.0,231.97,231.84,0.64682971]
[1733715835536,20.0,231.97,231.83,8.0398]
[1733715836233,20.0,231.93,231.83,8.0398]
[1733715838903,20.0,231.89,231.83,8.0398]
[1733715840957,20.0,231.85,231.76,6.5982]
[1733715844065,20.0,231.81,231.76,6.5982]
[1733715844264,20.0,231.85,231.76,6.5982]
[1733715844441,20.0,231.81,231.76,6.5982]
[1733715844634,20.0,231.81,231.74,1.601]
[1733715849663,20.0,231.83,231.74,1.601]
[1733715853140,20.0,231.87,231.74,1.601]
[1733715853578,4.56253628,231.94,231.74,10.83236847]
[1733715853945,4.56253628,231.94,231.76,6.1543]
[1733715854139,4.56253628,231.94,231.77,0.64700525]
[1733715854474,4.56253628,231.94,231.78,1.5604]
[1733715854976,4.56253628,231.94,231.79,0.64698081]
[1733715855350,5.14786972,231.99,231.79,0.64698081]
[1733715856147,5.14786972,231.99,231.79,9.23121593]
[1733715856576,23.776884,231.98,231.8,6.0612]
[1733715856775,8.91780253,232.0,231.81,2.207231]
[1733715856974,4.56253628,232.0,231.81,2.207231]
[1733715857749,4.56253628,232.0,231.81,1.5604]
[1733715858050,20.0,231.96,231.81,1.5604]
[1733715863172,20.0,231.92,231.81,1.5604]
[1733715864347,20.0,231.88,231.81,1.5604]
[1733715870680,20.0,231.88,231.68,85.7]
[1733715870681,20.0,231.84,231.73,1.5434]
[1733715875682,20.0,231.92,231.73,1.5434]
[1733715875884,16.81146972,231.95,231.73,1.5434]
[1733715876185,5.0,231.92,231.73,1.5434]
[1733715876586,6.23702478,231.92,231.73,1.5434]
[1733715876904,23.776884,231.91,231.73,1.5434]
[1733715877074,23.776884,231.87,231.73,1.5434]
[1733715877271,20.0,231.84,231.73,1.5434]
[1733715881004,24.35526625,231.92,231.75,7.9852]
[1733715881375,1.6636,231.95,231.75,7.9852]
[1733715881376,20.0,231.94,231.75,7.9852]
[1733715882307,23.776884,231.93,231.75,7.9852]
[1733715882507,20.0,231.9,231.75,7.9852]
[1733715883190,20.0,231.86,231.75,7.9852]
[1733715889262,5.0,231.93,231.75,7.9852]
[1733715889263,20.0,231.82,231.75,7.9852]
[1733715905250,20.0,231.82,231.75,1.5715]
[1733715905615,20.0,231.78,231.7,7.8637]
[1733715906344,20.0,231.74,231.7,1.5855]
[1733715906539,20.0,231.74,231.65,0.1022572]
[1733715908048,20.0,231.76,231.65,0.1022572]
[1733715908619,20.0,231.72,231.65,0.1022572]
[1733715909320,20.0,231.72,231.65,23.8791412]
[1733715909527,20.0,231.72,231.65,0.1022572]
[1733715911550,5.39297405,231.72,231.65,0.1022572]
[1733715911726,20.0,231.69,231.65,0.1022572]
[1733715912546,5.39297405,231.73,231.65,0.1022572]
[1733715912547,20.0,231.7,231.65,0.1022572]
[1733715914526,20.0,231.67,231.65,0.1022572]
[1733715915427,20.0,231.67,231.58,6.1764]
[1733715915621,20.0,231.67,231.59,23.776884]
[1733715916020,20.0,231.67,231.58,6.1764]
[1733715916322,20.0,231.63,231.57,1.5443]
[1733715916536,20.0,231.63,231.52,6.5245]
[1733715917751,20.0,231.59,231.52,6.5245]
[1733715918121,20.0,231.59,231.5,1.6105]
[1733715918347,20.0,231.56,231.5,1.6105]
[1733715919535,20.0,231.56,231.44,6.5245]
[1733715920022,24.56253628,231.56,231.44,6.5245]
[1733715921219,20.0,231.59,231.44,6.5245]
[1733715921621,20.0,231.57,231.44,6.5245]
[1733715922223,20.0,231.59,231.45,23.776884]
[1733715922953,24.56253628,231.59,231.45,23.776884]
[1733715923375,20.0,231.57,231.45,23.776884]
[1733715923581,20.0,231.56,231.45,23.776884]
[1733715923865,24.56253628,231.56,231.44,6.5245]
[1733715924064,4.56253628,231.56,231.44,6.5245]
[1733715925042,4.56253628,231.56,231.45,23.776884]
[1733715926873,24.56253628,231.56,231.42,2.1077072]
[1733715927074,20.0,231.54,231.42,2.1077072]
[1733715927481,4.56253628,231.53,231.42,2.1077072]
[1733715927689,43.776884,231.52,231.42,2.1077072]
[1733715927851,43.776884,231.52,231.39,6.3652]
[1733715928254,20.0,231.52,231.39,6.3652]
[1733715928679,24.56253628,231.53,231.39,6.3652]
[1733715930362,20.0,231.5,231.39,6.3652]
[1733715931062,24.30656707,231.52,231.39,6.3652]
[1733715931664,20.0,231.48,231.39,6.3652]
[1733715932491,20.0,231.5,231.39,6.3652]
[1733715933790,24.30656707,231.5,231.39,6.3652]
[1733715934571,24.30656707,231.5,231.37,1.5976]
[1733715935058,20.0,231.46,231.37,1.5976]
[1733715936479,20.0,231.46,231.32,32.7981]
[1733715936480,23.776884,231.45,231.32,32.7981]
[1733715936664,20.0,231.42,231.32,32.7981]
[1733715937295,5.56924322,231.46,231.32,32.7981]
[1733715937296,20.0,231.43,231.32,32.7981]
[1733715943228,24.35526625,231.49,231.33,23.776884]
[1733715943663,4.35526625,231.49,231.33,23.776884]
[1733715944297,4.35526625,231.49,231.32,32.7981]
[1733715944604,23.776884,231.48,231.32,32.7981]
[1733715944979,20.0,231.45,231.32,32.7981]
[1733715946203,23.776884,231.44,231.32,32.7981]
[1733715946374,20.0,231.41,231.32,32.7981]
[1733715948811,9.35526625,231.49,231.32,32.7981]
[1733715948812,20.0,231.48,231.32,32.7981]
[1733715948975,20.0,231.44,231.32,32.7981]
[1733715949434,20.0,231.4,231.32,32.7981]
[1733715950521,5.0,231.47,231.32,32.7981]
[1733715950522,20.0,231.36,231.32,32.7981]
[1733715954145,20.0,231.36,231.32,25.0]
[1733715958339,20.0,231.32,231.25,8.1516]
[1733715959147,19.9,231.32,231.25,8.1516]
[1733715961742,20.0,231.39,231.25,8.1516]
[1733715961946,3.78777334,231.41,231.25,8.1516]
[1733715963011,3.78777334,231.41,231.26,0.64850563]
[1733715963213,1.5104,231.48,231.26,0.64850563]
[1733715963436,3.78777334,231.47,231.26,0.64850563]
[1733715963845,3.78777334,231.47,231.27,1.6562]
[1733715964540,3.974444,231.46,231.27,1.6562]
[1733715965131,23.776884,231.43,231.27,1.6562]
[1733715965537,20.0,231.4,231.27,1.6562]
[1733715968351,3.78777334,231.47,231.29,25.440584]
[1733715968558,3.97444322,231.49,231.3,7.23600488]
[1733715969365,1.5677,231.46,231.3,6.5877]
[1733715969528,20.0,231.42,231.3,6.5877]
[1733715969933,23.776884,231.45,231.3,7.23606256]
[1733715971238,20.0,231.42,231.3,7.23606256]
[1733715972237,20.0,231.42,231.3,6.5877]
[1733715975665,20.0,231.38,231.3,6.5877]
[1733715976054,23.78777334,231.46,231.3,6.5877]
[1733715976233,23.776884,231.45,231.3,6.5877]
[1733715976651,3.78777334,231.46,231.31,0.64839052]
[1733715976866,3.97444322,231.49,231.32,1.5578]
[1733715977381,3.97444322,231.49,231.34,6.4539]
[1733715977946,20.0,231.47,231.34,6.4539]
[1733715978151,20.0,231.43,231.34,6.4539]
[1733715980655,20.0,231.45,231.35,0.64823724]
[1733715980969,3.78777334,231.52,231.38,1.5196]
[1733715981283,6.69095199,231.58,231.4,7.8598]
[1733715981444,26.04520461,231.6,231.36,8.58423512]
[1733715981445,12.66330062,231.6,231.43,6.6321]
[1733715981778,12.66330062,231.6,231.44,0.64793539]
[1733715981948,12.66330062,231.6,231.45,1.5628]
[1733715983478,4.35526625,231.6,231.45,1.5628]
[1733715984401,24.35526625,231.6,231.45,1.5628]
[1733715984686,20.0,231.53,231.45,1.5628]
[1733715985265,20.0,231.55,231.45,1.5628]
[1733715985884,23.776884,231.58,231.45,1.5628]
[1733715986084,4.35526625,231.59,231.46,0.64794269]
[1733715986454,6.68896738,231.64,231.46,0.64794269]
[1733715986653,6.68896738,231.64,231.47,8.0733]
[1733715987055,6.68896738,231.64,231.48,0.64780292]
[1733715987258,6.68896738,231.64,231.5,6.5588]
[1733715987456,6.68896738,231.64,231.5,7.20655072]
[1733715987457,4.35526625,231.64,231.5,7.20655072]
[1733715988023,3.00187863,231.68,231.5,7.20655072]
[1733715988168,20.0,231.66,231.51,1.5145]
[1733715988367,3.00187863,231.68,231.52,0.64772758]
[1733715988760,4.35526625,231.69,231.53,8.0733]
[1733715989080,4.35526625,231.69,231.54,0.6476306]
[1733715990001,4.35526625,231.69,231.53,8.0733]
[1733715990160,5.43017422,231.69,231.53,8.0733]
[1733715990356,24.85179197,231.68,231.53,8.0733]
[1733715990556,29.7137021,231.68,231.53,8.0733]
[1733715991181,20.0,231.65,231.53,8.0733]
[1733715992295,20.0,231.64,231.53,8.0733]
[1733715993174,23.776884,231.63,231.53,8.0733]
[1733715993379,20.0,231.6,231.53,8.0733]
[1733715994485,3.78700216,231.68,231.53,8.0733]
[1733715995769,23.776884,231.67,231.53,8.0733]
[1733715995966,20.0,231.64,231.53,8.0733]
[1733715996199,23.776884,231.63,231.53,8.0733]
[1733715996398,20.0,231.6,231.53,8.0733]
[1733715997399,20.0,231.64,231.53,8.0733]
[1733715997732,10.48344976,231.73,231.57,1.5199]
[1733715997999,4.35526625,231.77,231.6,6.6238]
[1733715998228,4.35526625,231.77,231.62,6.6238]
[1733715998387,4.35526625,231.77,231.63,2.16729232]
[1733715999817,23.776884,231.76,231.63,2.16729232]
[1733716000022,20.0,231.73,231.63,2.16729232]
[1733716000226,23.776884,231.76,231.63,2.16729232]
[1733716000796,23.776884,231.76,231.63,1.5199]
[1733716001514,20.0,231.69,231.63,1.5199]
[1733716002833,20.0,231.65,231.63,1.5199]
[1733716002991,20.0,231.65,231.62,6.6238]
[1733716003188,20.0,231.65,231.49,0.64765673]
[1733716004004,20.0,231.65,231.46,5.64768623]
[1733716004208,20.0,231.65,231.49,20.0]
[1733716004399,20.0,231.65,231.5,0.64767554]
[1733716005296,20.0,231.61,231.47,23.776884]
[1733716005528,20.0,231.61,231.46,5.64767786]
[1733716005732,20.0,231.61,231.46,0.64767786]
[1733716005933,20.0,231.61,231.47,1.6211]
[1733716006115,20.0,231.61,231.49,6.0409]
[1733716006318,20.0,231.61,231.5,0.64770514]
[1733716007836,2.11143361,231.68,231.5,0.64770514]
[1733716007837,23.776884,231.67,231.51,1.6211]
[1733716008001,20.0,231.64,231.52,0.6476236]
[1733716008405,2.24383264,231.69,231.52,0.6476236]
[1733716009212,23.776884,231.68,231.51,1.6211]
[1733716009445,20.0,231.61,231.51,1.6211]
[1733716009741,20.0,231.61,231.51,2.26881367]
[1733716010240,20.0,231.65,231.51,2.26881367]
[1733716010731,2.24383264,231.69,231.51,1.6211]
[1733716010732,20.0,231.61,231.51,1.6211]
[1733716015044,20.0,231.57,231.51,1.6211]
[1733716016244,20.0,231.53,231.45,1.5946]
[1733716016949,20.0,231.58,231.45,1.5946]
[1733716017739,20.0,231.54,231.45,1.5946]
[1733716018825,20.0,231.54,231.36,8.2264]
[1733716019357,20.0,231.5,231.36,8.2264]
[1733716023444,23.776884,231.49,231.36,8.2264]
[1733716023627,20.0,231.46,231.36,8.2264]
[1733716024158,20.0,231.46,231.22,10.0]
[1733716024159,20.0,231.42,231.31,6.3425]
[1733716024859,20.0,231.46,231.31,6.9908543]
[1733716025150,20.0,231.49,231.31,6.9908543]
[1733716025852,20.0,231.45,231.31,6.3425]
[1733716027329,20.0,231.41,231.31,6.3425]
[1733716032540,20.0,231.45,231.31,6.3425]
[1733716032743,3.39939123,231.51,231.32,23.776884]
[1733716032940,1.6251,231.51,231.33,0.64822588]
[1733716033677,1.6251,231.51,231.34,23.776884]
[1733716033846,2.11143361,231.52,231.35,2.1989365]
[1733716034045,2.24383264,231.53,231.35,2.1989365]
[1733716035495,20.0,231.52,231.35,2.1989365]
[1733716037475,23.776884,231.51,231.35,1.5508]
[1733716037675,20.0,231.48,231.35,1.5508]
[1733716039563,23.776884,231.43,231.35,1.5508]
[1733716039813,20.0,231.4,231.31,6.3425]
[1733716046040,1.5219,231.47,231.31,6.3425]
[1733716047419,20.0,231.43,231.31,6.3425]
[1733716048518,20.0,231.39,231.31,6.3425]
[1733716051970,1.5219,231.47,231.31,6.3425]
[1733716051971,4.35526625,231.48,231.32,0.64840989]
[1733716052128,4.35526625,231.48,231.31,6.3425]
[1733716053048,20.0,231.46,231.31,6.3425]
[1733716053254,20.0,231.42,231.31,6.3425]
[1733716054142,23.776884,231.43,231.31,6.3425]
[1733716054348,20.0,231.4,231.31,6.3425]
[1733716055053,20.0,231.46,231.31,6.3425]
[1733716055435,20.0,231.42,231.31,6.3425]
[1733716056533,23.776884,231.41,231.31,6.3425]
[1733716056864,20.0,231.38,231.31,6.3425]
[1733716057173,20.0,231.38,231.29,1.5508]
[1733716058169,20.0,231.34,231.26,6.1617]
[1733716058650,23.776884,231.33,231.26,6.1617]
[1733716058965,20.0,231.3,231.2,6.1617]
[1733716064131,20.0,231.3,231.21,0.64871201]
[1733716064332,20.0,231.35,231.2,6.81030761]
[1733716065573,20.0,231.31,231.2,6.81030761]
[1733716065864,5.77967104,231.42,231.2,6.81030761]
[1733716067164,23.776884,231.36,231.2,6.81030761]
[1733716067469,20.0,231.33,231.2,6.81030761]
[1733716073857,20.0,231.33,231.2,6.1617]
[1733716074064,20.0,231.29,231.2,6.1617]
[1733716075645,20.0,231.29,231.2,6.81034028]
[1733716075945,20.0,231.29,231.2,6.1617]
[1733716081267,20.0,231.25,231.19,2.1082072]
[1733716081469,20.0,231.21,231.09,0.03044625]
[1733716081773,20.0,231.13,231.09,0.03044625]
[1733716082193,5.0,230.99,230.79,3.43877449]
[1733716082505,20.0,230.97,230.82,5.0]
[1733716082677,6.69095199,231.02,230.85,5.0]
[1733716082883,0.64895933,231.01,230.86,6.06105646]
[1733716083198,20.0,230.98,230.87,0.4746252]
[1733716083369,0.81171021,230.97,230.8,4.5]
[1733716083570,0.81171021,230.97,230.81,0.47498952]
[1733716083776,0.81187318,230.97,230.81,0.47498952]
[1733716083978,0.81193277,231.0,230.81,4.97498952]
[1733716084208,0.5,230.99,230.81,4.97498952]
[1733716084494,0.81191496,230.98,230.81,0.47498952]
[1733716084706,26.69095199,230.96,230.82,0.47510746]
[1733716085000,20.81194015,230.95,230.8,4.5]
[1733716085202,20.0,230.97,230.83,10.5614]
[1733716085593,20.0,230.97,230.83,6.0614]